Workbook

Sheet Class Revenue Allocation
A1: CLASS REVENUE ALLOCATION
A2: LINE | G2: PUBLIC | I2: ELEC. | J2: COM. | K2: IND. | L2: PUB. AUTH. | M2: CNG | N2: ELEC. GEN. | O2: FORT
A3: NO. | B3: DESCRIPTION | C3: TOTAL | D3: RESIDENTIAL | E3: COMMERCIAL | F3: INDUSTRIAL | G3: AUTHORITY | H3: CNG | I3: GEN. | J3: TRANS. | K3: TRANS. | L3: TRANS. | M3: TRANS. | N3: TRANS. | O3: BLISS
B4: (a) | C4: (b) | D4: (c) | E4: (d) | F4: (e) | G4: (f) | H4: (g) | I4: (h) | J4: (i) | K4: (j) | L4: (k) | M4: (l) | N4: (m) | O4: (n)
A6: 1 | B6: Current Revenue-to-Cost Ratio (1) | C6: =+C35/C39 -> 0.9210947764 | D6: =+D35/D39 -> 0.8385910731 | E6: =+E35/E39 -> 1.4211687 | F6: =+F35/F39 -> 2.585363967 | G6: =+G35/G39 -> 1.613185351 | H6: =IFERROR(+H35/H39,0) -> 0 | I6: =IFERROR(+I35/I39,0) -> 0 | J6: =+J35/J39 -> 1.219030977 | K6: =+K35/K39 -> 2.744634775 | L6: =+L35/L39 -> 1.222770279 | M6: =+M35/M39 -> 2.136907651 | N6: =IFERROR(+N35/N39,0) -> 0 | O6: =+O35/O39 -> 0.9220374422
A8: =+A6+1 -> 2 | B8: Revenue Allocation One - Cost of Service Study Required Revenue Changes
A9: =+A8+1 -> 3 | B9: Revenue-to-Cost Ratio | C9: =(+C35+C10)/C39 -> 1 | D9: =+(D35+D40)/D39 -> 1 | E9: =+(E35+E40)/E39 -> 1 | F9: =+(F35+F40)/F39 -> 1 | G9: =+(G35+G40)/G39 -> 1 | H9: =IFERROR(+(H35+H40)/H39,0) -> 0 | I9: =IFERROR(+(I35+I40)/I39,0) -> 0 | J9: =+(J35+J40)/J39 -> 1 | K9: =+(K35+K40)/K39 -> 1 | L9: =+(L35+L40)/L39 -> 1 | M9: =+(M35+M40)/M39 -> 1 | N9: =IFERROR(+(N35+N40)/N39,0) -> 0 | O9: =+(O35+O40)/O39 -> 1
A10: 4 | B10: Rate Design Revenue Increase | C10: =SUM(D10:O10) -> 14297684.15 | D10: =D40 -> 25153558.74 | E10: -7092591.88 | F10: -423522.4679 | G10: -2328190.431 | H10: 0 | I10: 0 | J10: -136915.8971 | K10: -679176.471 | L10: -102263.0904 | M10: -305054.9104 | N10: 0 | O10: 211840.5576
A11: 5 | B11: % Increase - Non-Gas Revenue (2) | C11: =+C10/C35 -> 0.08566460876 | D11: =+D10/D35 -> 0.1924763238 | E11: =+E10/E35 -> -0.2963537687 | F11: =+F10/F35 -> -0.6132072649 | G11: =+G10/G35 -> -0.3801084299 | H11: =IFERROR(+H10/H35,0) -> 0 | I11: =IFERROR(+I10/I35,0) -> 0 | J11: =+J10/J35 -> -0.179676301 | K11: =+K10/K35 -> -0.6356527983 | L11: =+L10/L35 -> -0.1821848981 | M11: =+M10/M35 -> -0.5320340589 | N11: =IFERROR(N10/N35,0) -> 0 | O11: =+O10/O35 -> 0.08455465493
A12: 6 | B12: % Increase - Total Revenue (3) | C12: =+C10/(C35+C36) -> 0.0580238197 | D12: =+D10/(D35+D36) -> 0.1378474739 | E12: =+E10/(E35+E36) -> -0.163455761 | F12: =+F10/(F35+F36) -> -0.3543739943 | G12: =+G10/(G35+G36) -> -0.2035151005 | H12: =IFERROR(+H10/(H35+H36),0) -> 0 | I12: =IFERROR(+I10/(I35+I36),0) -> 0 | J12: =+J10/(J35+J36) -> -0.179676301 | K12: =+K10/(K35+K36) -> -0.6356527983 | L12: =+L10/(L35+L36) -> -0.1821848981 | M12: =+M10/(M35+M36) -> -0.5320340589 | N12: =IFERROR(+N10/(N35+N36),0) -> 0 | O12: =+O10/(O35+O36) -> 0.04283889831
A13: 7 | B13: % Total Revenue (for GRIP) | C13: =(C10+C37)/($C$10+$C$37) -> 1 | D13: 0.8590357991 | E13: 0.09335201695 | F13: 0.0014910438 | G13: 0.02120949643 | H13: 0 | I13: 0 | J13: 0.003492334661 | K13: 0.002174931708 | L13: 0.002564656363 | M13: 0.0014990646 | N13: 0 | O13: 0.01518065638
A14: 8 | B14: Revenue Allocation Two - Partial Movement Toward Cost of Service (4)
A15: 9 | B15: Revenue-to-Cost Ratio | C15: =+(C35+C16)/C39 -> 1 | D15: =+(D35+D16)/D39 -> 0.9431832913 | E15: =+(E35+E16)/E39 -> 1.33693496 | F15: =+(F35+F16)/F39 -> 2.268291174 | G15: =+(G35+G16)/G39 -> 1.490548281 | H15: =IFERROR(+(H35+H16)/H39,0) -> 0 | I15: =IFERROR(+(I35+I16)/I39,0) -> 0 | J15: =+(J35+J16)/J39 -> 1.175224781 | K15: =+(K35+K16)/K39 -> 2.39570782 | L15: =+(L35+L16)/L39 -> 1.178216223 | M15: =+(M35+M16)/M39 -> 1.909526121 | N15: =IFERROR(+(N35+N16)/N39,0) -> 0 | O15: =+(O35+O16)/O39 -> 1
A16: 10 | B16: Rate Design Revenue Increase | C16: =SUM(D16:O16) -> 14297684.15 | D16: =C10-E16-F16-G16-J16-K16-L16-M16-O16 -> 16299386.62 | E16: =+E10*$P$16 -> -1418518.376 | F16: -84704.49358 | G16: -465638.0861 | H16: 0 | I16: 0 | J16: -27383.17943 | K16: -135835.2942 | L16: -20452.61807 | M16: -61010.98208 | N16: 0 | O16: =O10 -> 211840.5576 | P16: 0.2
A17: 11 | B17: % Increase - Non-Gas Revenue (2) | C17: =+C16/C35 -> 0.08566460876 | D17: =+D16/D35 -> 0.1247237439 | E17: =+E16/E35 -> -0.05927075373 | F17: =+F16/F35 -> -0.122641453 | G17: =+G16/G35 -> -0.07602168598 | H17: =IFERROR(+H16/H35,0) -> 0 | I17: =IFERROR(+I16/I35,0) -> 0 | J17: =+J16/J35 -> -0.0359352602 | K17: =+K16/K35 -> -0.1271305597 | L17: =+L16/L35 -> -0.03643697961 | M17: =+M16/M35 -> -0.1064068118 | N17: =IFERROR(+N16/N35,0) -> 0 | O17: =+O16/O35 -> 0.08455465493
A18: 12 | B18: % Increase - Total Revenue (3) | C18: =+C16/(C35+C36) -> 0.0580238197 | D18: =+D16/(D35+D36) -> 0.08932450852 | E18: =+E16/(E35+E36) -> -0.03269115219 | F18: =+F16/(F35+F36) -> -0.07087479886 | G18: =+G16/(G35+G36) -> -0.04070302011 | H18: =IFERROR(+H16/(H35+H36),0) -> 0 | I18: =IFERROR(+I16/(I35+I36),0) -> 0 | J18: =+J16/(J35+J36) -> -0.0359352602 | K18: =+K16/(K35+K36) -> -0.1271305597 | L18: =+L16/(L35+L36) -> -0.03643697961 | M18: =+M16/(M35+M36) -> -0.1064068118 | N18: =IFERROR(+N16/(N35+N36),0) -> 0 | O18: =+O16/(O35+O36) -> 0.04283889831
A19: 13 | B19: % Total Revenue (for GRIP) | C19: =(C16+C37)/($C$16+$C$37) -> 1 | D19: 0.8090778473 | E19: 0.125366878 | F19: 0.003402758617 | G19: 0.0317185874 | H19: 0 | I19: 0 | J19: 0.004110351812 | K19: 0.005240629093 | L19: 0.003026256113 | M19: 0.002876035212 | N19: 0 | O19: 0.01518065638
A20: 14 | B20: Revenue Allocation Three - No Movement Toward Cost of Service for Classes Requiring Revenue Decreases (5)
A21: 15 | B21: Revenue-to-Cost Ratio | C21: =+(C35+C22)/C39 -> 1 | D21: =+(D35+D22)/D39 -> 0.9289791141 | E21: =+(E35+E22)/E39 -> 1.4211687 | F21: =+(F35+F22)/F39 -> 2.585363967 | G21: =+(G35+G22)/G39 -> 1.613185351 | H21: =IFERROR(+(H35+H22)/H39,0) -> 0 | I21: =IFERROR(+(I35+I22)/I39,0) -> 0 | J21: =+(J35+J22)/J39 -> 1.219030977 | K21: =+(K35+K22)/K39 -> 2.744634775 | L21: =+(L35+L22)/L39 -> 1.222770279 | M21: =+(M35+M22)/M39 -> 2.136907651 | N21: =IFERROR(+(N35+N22)/N39,0) -> 0 | O21: =+(O35+O22)/O39 -> 1
A22: 16 | B22: =+B10 -> Rate Design Revenue Increase | C22: =SUM(D22:O22) -> 14297684.15 | D22: =C10-O22 -> 14085843.59 | E22: 0 | F22: 0 | G22: 0 | H22: 0 | I22: 0 | J22: 0 | K22: 0 | L22: 0 | M22: 0 | N22: 0 | O22: =O10 -> 211840.5576
A23: 17 | B23: =+B11 -> % Increase - Non-Gas Revenue (2) | C23: =+C22/C35 -> 0.08566460876 | D23: =+D22/D35 -> 0.1077855989 | E23: =+E22/E35 -> 0 | F23: =+F22/F35 -> 0 | G23: =+G22/G35 -> 0 | H23: =IFERROR(+H22/H35,0) -> 0 | I23: =IFERROR(+I22/I35,0) -> 0 | J23: =+J22/J35 -> 0 | K23: =+K22/K35 -> 0 | L23: =+L22/L35 -> 0 | M23: =+M22/M35 -> 0 | N23: =IFERROR(+N22/N35,0) -> 0 | O23: =+O22/O35 -> 0.08455465493
A24: 18 | B24: =+B12 -> % Increase - Total Revenue (3) | C24: =+C22/(C35+C36) -> 0.0580238197 | D24: =+D22/(D35+D36) -> 0.07719376717 | E24: =+E22/(E35+E36) -> 0 | F24: =+F22/(F35+F36) -> 0 | G24: =+G22/(G35+G36) -> 0 | H24: =IFERROR(+H22/(H35+H36),0) -> 0 | I24: =IFERROR(+I22/(I35+I36),0) -> 0 | J24: =+J22/(J35+J36) -> 0 | K24: =+K22/(K35+K36) -> 0 | L24: =+L22/(L35+L36) -> 0 | M24: =+M22/(M35+M36) -> 0 | N24: =IFERROR(+N22/(N35+N36),0) -> 0 | O24: =+O22/(O35+O36) -> 0.04283889831
A25: 19 | B25: % Total Revenue (for GRIP) | C25: =(C22+C37)/($C$22+$C$37) -> 1 | D25: 0.7965883594 | E25: 0.1333705933 | F25: 0.003880687321 | G25: 0.03434586014 | H25: 0 | I25: 0 | J25: 0.0042648561 | K25: 0.006007053439 | L25: 0.00314165605 | M25: 0.003220277865 | N25: 0 | O25: 0.01518065638
A27: (1) Revenue-to-cost ratios are the ratios of each class' non-gas revenue (including revenue credits) to the cost of service.
A28: (2) Non-gas revenue is the sum of as adjusted test year base revenue (i.e., revenue from recurring monthly charges resulting from as adjusted billing determinants), service charge revenue, special contract revenue, and other revenue credited to the cost of service for each class.
A29: (3) Total revenue is the sum of non-gas revenue (see Note 2) and as adjusted gas costs. As adjusted gas costs are calculated by multiplying the test year average cost of gas (i.e., test year gas cost revenue divided by unadjusted sales service volumes) by as adjusted sales service volumes.
A30: (4) For each class with a cost of service required revenue decrease, 20 percent of the required decrease is implemented. The benefit of implementing less than the required decreases is assigned to the residential class.
A31: (5) No revenue change assigned to a class for which the cost of service required revenue change calls for a decrease. The resulting benefit from not implementing the required deceases is assigned to the residential class.
I33: =I2 -> ELEC. | J33: =J2 -> COM. | K33: IND. | L33: PUB. AUTH. | M33: CNG | N33: ELEC. GEN. | O33: FORT
B34: DESCRIPTION | C34: TOTAL | D34: =D3 -> RESIDENTIAL | E34: =E3 -> COMMERCIAL | F34: INDUSTRIAL | G34: AUTHORITY | H34: CNG | I34: GEN. | J34: TRANS. | K34: TRANS. | L34: TRANS. | M34: TRANS. | N34: TRANS. | O34: BLISS
B35: Base With Service Charges and Other (COS) | C35: =SUM(D35:O35) -> 166903046.1 | D35: 130683910.8 | E35: 23932855.36 | F35: 690667.727 | G35: 6125069.184 | H35: 0 | I35: 0 | J35: 762014.2242 | K35: 1068470.827 | L35: 561314.8589 | M35: 573374.778 | N35: 0 | O35: 2505368.366
B36: COG Revenue | C36: =SUM(D36:O36) -> 79507552.5 | D36: 51789935.29 | E36: 19458652.15 | F36: 504460.7946 | G36: 5314821.146 | H36: 0 | I36: 0 | J36: 0 | K36: 0 | L36: 0 | M36: 0 | N36: 0 | O36: 2439683.117
B37: Base Revenue | C37: =SUM(D37:O37) -> 162934804.4 | D37: 127095493.7 | E37: 23637602.16 | F37: 687783.8712 | G37: 6087202.265 | H37: 0 | I37: 0 | J37: 755871.06 | K37: 1064645.03 | L37: 556803.52 | M37: 570737.86 | N37: 0 | O37: 2478664.95
B39: COS | C39: =SUM(D39:O39) -> 181200730.3 | D39: 155837469.5 | E39: 16840263.48 | F39: 267145.2592 | G39: 3796878.753 | H39: 0 | I39: 0 | J39: 625098.3271 | K39: 389294.3558 | L39: 459051.7686 | M39: 268319.8676 | N39: 0 | O39: 2717208.924
B40: COS Revenue Increase | C40: =SUM(D40:O40) -> 14297684.15 | D40: 25153558.74 | E40: -7092591.88 | F40: -423522.4679 | G40: -2328190.431 | H40: 0 | I40: 0 | J40: -136915.8971 | K40: -679176.471 | L40: -102263.0904 | M40: -305054.9104 | N40: 0 | O40: 211840.5576
B43: Fixed Costs | D43: 155337661 | E43: 16652474.09 | F43: 262276.8654 | G43: 3745587.072 | H43: 0 | I43: 0 | J43: 599090.714 | K43: 361091.5489 | L43: 444906.5372 | M43: 247468.7747 | N43: 0 | O43: 2693661.193
B44: Bills | D44: 3505999.058 | E44: 205950.5099 | F44: 420 | G44: 17059.03955 | H44: 0 | I44: 0 | J44: 249 | K44: 156 | L44: 120 | M44: 48 | N44: 0 | O44: 227
B45: Fixed Costs/Bill | D45: =+D43/D44 -> 44.30624722 | E45: =+E43/E44 -> 80.85667816 | F45: =+F43/F44 -> 624.4687271 | G45: =+G43/G44 -> 219.5661169 | H45: =IFERROR(+H43/H44,0) -> 0 | I45: =IFERROR(+I43/I44,0) -> 0 | J45: =+J43/J44 -> 2405.986803 | K45: =+K43/K44 -> 2314.689416 | L45: =+L43/L44 -> 3707.554477 | M45: =+M43/M44 -> 5155.599472 | N45: =IFERROR(+N43/N44,0) -> 0 | O45: =+O43/O44 -> 11866.34887
